bitfinex/quotes_SOLUSD_20260213
["timestamp","ask_amount","ask_price","bid_price","bid_amount"]
[1770965856492,0.46458901,78.679,78.646,0.49920806]
[1770965856985,0.46458901,78.678,78.646,0.49920806]
[1770965857984,0.46458901,78.678,78.645,12.71536652]
[1770965857985,0.46458901,78.678,78.651,0.49920806]
[1770965859596,0.46458901,78.715,78.652,0.49920806]
[1770965859801,0.46458901,78.709,78.681,0.49920806]
[1770965860396,0.46458901,78.718,78.691,0.49920806]
[1770965861479,0.46458901,78.718,78.693,0.49920806]
[1770965861676,0.46458901,78.717,78.688,0.49920806]
[1770965861997,0.46458901,78.717,78.69,4.76013567]
[1770965862185,0.46458901,78.717,78.691,0.49920806]
[1770965864390,31.66,78.721,78.693,0.49920806]
[1770965864594,0.46458901,78.723,78.701,0.49920806]
[1770965865484,0.46458901,78.718,78.701,0.49920806]
[1770965868306,0.46458901,78.718,78.7,4.26092761]
[1770965870690,0.46458901,78.718,78.701,12.70631885]
[1770965870889,0.46458901,78.718,78.702,0.49920806]
[1770965871097,0.46458901,78.724,78.702,0.49920806]
[1770965873884,0.46458901,78.717,78.7,4.26092761]
[1770965874089,0.46458901,78.717,78.701,0.49920806]
[1770965874293,0.46458901,78.722,78.701,0.49920806]
[1770965874891,0.46458901,78.718,78.7,12.70638943]
[1770965875097,0.46458901,78.718,78.701,0.49920806]
[1770965876513,0.46458901,78.718,78.702,13.20536546]
[1770965876695,0.46458901,78.723,78.703,0.49920806]
[1770965877402,0.46458901,78.718,78.703,0.49920806]
[1770965877795,0.46458901,78.723,78.71,4.26092761]
[1770965877996,0.46458901,78.723,78.703,0.49920806]
[1770965878197,0.46458901,78.718,78.703,0.49920806]
[1770965878403,0.46458901,78.718,78.701,0.49920806]
[1770965880798,0.45998113,78.723,78.703,0.47133867]
[1770965881690,0.45998113,78.718,78.703,0.47133867]
[1770965881889,0.45998113,78.718,78.701,0.47133867]
[1770965882096,0.45998113,78.718,78.69,4.26092761]
[1770965882097,0.45998113,78.717,78.672,0.47133867]
[1770965882295,0.45998113,78.699,78.672,0.47133867]
[1770965882509,0.45998113,78.699,78.667,0.47133867]
[1770965882821,0.45998113,78.697,78.671,0.47133867]
[1770965883614,0.45998113,78.697,78.67,16.97222554]
[1770965883615,0.45998113,78.709,78.681,0.47133867]
[1770965884412,0.45998113,78.716,78.691,0.47133867]
[1770965885496,0.45998113,78.716,78.692,0.47133867]
[1770965885907,0.45998113,78.728,78.701,0.47133867]
[1770965886106,13.16207866,78.728,78.701,0.47133867]
[1770965886418,0.45998113,78.722,78.701,0.47133867]
[1770965889219,0.45998113,78.747,78.711,0.47133867]
[1770965889403,0.45998113,78.746,78.711,0.47133867]
[1770965889606,4.36092761,78.75,78.711,0.47133867]
[1770965889607,0.45998113,78.739,78.711,0.47133867]
[1770965891116,0.45998113,78.737,78.711,0.47133867]
[1770965891625,0.45998113,78.737,78.713,0.47133867]
[1770965896530,0.45998113,78.735,78.713,0.47133867]
[1770965898325,0.45998113,78.735,78.711,12.70460246]
[1770965898326,0.45998113,78.747,78.721,0.47133867]
[1770965898627,0.45998113,78.747,78.723,0.47133867]
[1770965899133,0.45998113,78.745,78.723,0.47133867]
[1770965899726,0.45998113,78.745,78.717,12.70360756]
[1770965899727,0.45998113,78.739,78.714,0.47133867]
[1770965900513,0.45998113,78.739,78.715,12.70405894]
[1770965900719,0.45998113,78.739,78.716,0.47133867]
[1770965901215,0.45998113,78.739,78.721,0.47133867]
[1770965902032,67.5563303,78.75,78.722,0.47133867]
[1770965902231,67.5563303,78.75,78.721,12.70303281]
[1770965902232,0.1,78.75,78.731,0.47133867]
[1770965903013,0.1,78.75,78.726,0.47133867]
[1770965903014,0.45998113,78.747,78.726,0.47133867]
[1770965904519,0.45998113,78.739,78.701,0.47133867]
[1770965904734,0.45998113,78.729,78.701,0.47133867]
[1770965906435,0.45998113,78.729,78.702,12.7061574]
[1770965906626,0.45998113,78.729,78.703,0.47133867]
[1770965907017,0.45998113,78.736,78.71,4.25790429]
[1770965907223,4.25790429,78.74,78.711,0.47133867]
[1770965907942,12.69997132,78.741,78.721,0.47133867]
[1770965908534,4.25790429,78.74,78.721,0.47133867]
[1770965908722,0.45998113,78.739,78.711,0.47133867]
[1770965910040,0.45998113,78.737,78.711,0.47133867]
[1770965910243,0.45998113,78.737,78.713,0.47133867]
[1770965913319,12.70016174,78.74,78.713,0.47133867]
[1770965914348,12.70016174,78.74,78.715,0.48892587]
[1770965914738,13.15611573,78.74,78.715,0.48892587]
[1770965914944,0.45595399,78.739,78.715,0.48892587]
[1770965915656,0.45595399,78.737,78.71,4.25790429]
[1770965915950,0.45595399,78.737,78.71,0.48892587]
[1770965917131,0.45595399,78.737,78.71,4.74683016]
[1770965917367,0.45595399,78.737,78.711,0.48892587]
[1770965917651,0.45595399,78.737,78.711,13.19363042]
[1770965918242,0.45595399,78.737,78.711,12.70470455]
[1770965918447,0.45595399,78.737,78.712,0.48892587]
[1770965919854,0.45595399,78.737,78.714,0.48892587]
[1770965920041,63.19973522,78.742,78.721,0.48892587]
[1770965920244,50.5,78.742,78.721,0.48892587]
[1770965921063,12.69986411,78.741,78.721,0.48892587]
[1770965921243,0.45595399,78.739,78.714,0.48892587]
[1770965922654,0.45595399,78.739,78.716,0.48892587]
[1770965923959,0.45595399,78.738,78.716,0.48892587]
[1770965925357,0.45595399,78.736,78.693,0.48892587]
[1770965925543,0.45595399,78.729,78.701,0.48892587]
[1770965926558,50.66,78.732,78.711,0.48892587]
[1770965927953,51.11595399,78.732,78.711,0.48892587]
[1770965928642,0.45595399,78.731,78.713,0.48892587]
[1770965930566,50.66,78.732,78.714,12.70422034]
[1770965930764,50.66,78.732,78.715,0.48892587]
[1770965931462,0.45595399,78.731,78.715,0.48892587]
[1770965932270,50.66,78.732,78.715,0.48892587]
[1770965932464,50.66,78.732,78.717,0.48892587]
[1770965932652,0.45595399,78.731,78.717,0.48892587]
[1770965933468,0.1,78.75,78.721,0.48892587]
[1770965933668,0.1,78.75,78.731,0.48892587]
[1770965934564,0.1,78.75,78.733,0.48892587]
[1770965935156,31.73626058,78.775,78.732,12.70131585]
[1770965935157,16.95151182,78.78,78.751,0.48892587]
[1770965935357,50.74,78.773,78.751,0.48892587]
[1770965935665,0.45595399,78.769,78.751,0.48892587]
[1770965935846,0.45595399,78.769,78.741,0.48892587]
[1770965936651,0.45595399,78.769,78.742,12.69970282]
[1770965936950,0.45595399,78.769,78.75,4.25790429]
[1770965937152,0.45595399,78.769,78.751,0.48892587]
[1770965939146,0.45595399,78.769,78.751,13.1871702]
[1770965940161,0.1,78.77,78.752,0.48892587]
[1770965940468,50.72,78.786,78.761,0.48892587]
[1770965940862,50.72,78.786,78.771,0.46401299]
[1770965941471,50.72,78.786,78.751,0.46401299]
[1770965941472,4.25790429,78.78,78.751,0.46401299]
[1770965941974,4.25790429,78.78,78.738,31.7505797]
[1770965941975,4.25790429,78.77,78.744,0.46401299]
[1770965942369,0.08023302,78.768,78.744,0.46401299]
[1770965942571,0.08023302,78.768,78.732,0.46401299]
[1770965943278,0.08013815,78.766,78.734,0.46401299]
[1770965943976,0.08013815,78.766,78.741,0.46401299]
[1770965944377,0.08004438,78.759,78.727,0.46401299]
[1770965944579,0.08004438,78.759,78.729,0.46401299]
[1770965944974,0.08004438,78.759,78.731,0.46401299]
[1770965945163,0.08004438,78.759,78.733,0.46401299]
[1770965945560,0.07995168,78.749,78.723,12.70274675]
[1770965945878,0.07986005,78.747,78.719,0.46401299]
[1770965946261,0.07986005,78.747,78.721,0.46401299]
[1770965947976,0.07967994,78.739,78.721,0.46401299]
[1770965948485,0.07967994,78.739,78.722,0.46401299]
[1770965948776,4.25790429,78.74,78.722,0.46401299]
[1770965949371,0.07959143,78.738,78.715,0.46401299]
[1770965949567,0.07959143,78.734,78.711,0.46401299]
[1770965950079,0.07950393,78.749,78.721,0.46401299]
[1770965950285,50.78,78.748,78.721,0.46401299]
[1770965950493,0.07950393,78.764,78.731,0.46401299]
[1770965950793,50.78,78.756,78.731,0.46401299]
[1770965950990,0.07950393,78.764,78.731,0.46401299]
[1770965951165,50.78,78.763,78.731,0.46401299]
[1770965951365,4.25532382,78.76,78.732,12.70131585]
[1770965951669,50.78,78.763,78.733,0.46401299]
[1770965952279,63.47646211,78.763,78.733,0.46401299]
[1770965952481,12.69646211,78.763,78.733,0.46401299]
[1770965952878,0.07924744,78.759,78.733,0.46401299]
[1770965953068,4.25532382,78.76,78.733,0.46401299]
[1770965954069,4.25532382,78.76,78.735,0.46401299]
[1770965954276,12.69632689,78.763,78.735,0.46401299]
[1770965954775,4.25532382,78.76,78.735,0.46401299]
[1770965956396,12.77596129,78.759,78.735,0.46401299]
[1770965956575,0.07899968,78.758,78.735,0.46401299]
[1770965959181,12.77512046,78.763,78.737,0.46401299]
[1770965959785,0.07876036,78.762,78.737,0.46401299]
[1770965960088,4.25532382,78.76,78.737,0.46401299]
[1770965960292,0.07868241,78.759,78.737,0.46401299]
[1770965961793,4.33392918,78.75,78.732,0.46401299]
[1770965962006,0.07860536,78.75,78.732,0.46401299]
[1770965962181,0.07852919,78.758,78.733,12.70115453]
[1770965963301,0.0784539,78.756,78.733,12.70115453]
[1770965963615,0.0784539,78.749,78.721,0.46401299]
[1770965963800,50.82,78.755,78.731,0.46401299]
[1770965964295,4.25532382,78.75,78.731,0.46401299]
[1770965964487,50.89837947,78.755,78.731,0.46401299]
[1770965965097,4.25532382,78.75,78.721,0.46401299]
[1770965966298,0.07823317,78.749,78.723,0.46401299]
[1770965967194,4.25532382,78.75,78.723,0.46401299]
[1770965967375,0.07816128,78.749,78.723,0.46401299]
[1770965967794,4.25532382,78.75,78.723,0.46401299]
[1770965968185,12.6979845,78.753,78.723,0.46401299]
[1770965968486,12.77607471,78.753,78.725,0.46401299]
[1770965968699,4.25532382,78.75,78.725,0.46401299]
[1770965969580,17.0318421,78.75,78.725,0.46401299]
[1770965969780,0.07801996,78.749,78.725,0.46401299]
[1770965970095,4.25532382,78.75,78.727,0.46401299]
[1770965970487,0.07788187,78.749,78.727,0.46401299]
[1770965971496,12.77645582,78.749,78.727,0.46401299]
[1770965971677,50.95781401,78.748,78.727,0.46401299]
[1770965972302,0.07774693,78.747,78.727,0.46401299]
[1770965972499,0.07774693,78.747,78.723,0.46401299]
[1770965972500,4.25532382,78.74,78.723,0.46401299]
[1770965974296,50.88,78.744,78.723,0.46401299]
[1770965974495,50.99761508,78.747,78.725,0.46401299]
[1770965976704,50.92,78.747,78.725,0.46401299]
[1770965977106,50.92,78.747,78.727,0.46401299]
[1770965977312,0.07736034,78.766,78.731,0.46401299]
[1770965977487,50.96,78.765,78.731,0.46401299]
[1770965977688,0.07736034,78.764,78.731,0.46401299]
[1770965977889,4.25532382,78.76,78.731,0.46401299]
[1770965978201,0.07729847,78.759,78.731,0.46401299]
[1770965981394,0.07729847,78.759,78.733,0.46401299]
[1770965983704,0.07699963,78.758,78.733,0.46401299]
[1770965984689,0.07699963,78.758,78.734,12.70099321]
[1770965984890,0.07699963,78.758,78.735,0.46401299]
[1770965986588,4.25532382,78.75,78.725,0.46401299]
[1770965986791,0.07682844,78.749,78.725,0.46401299]
[1770965987216,0.07677268,78.758,78.725,0.46401299]
[1770965987597,0.07677268,78.749,78.725,0.46401299]
[1770965987899,4.25532382,78.74,78.72,0.46401299]
[1770965988202,0.07671757,78.739,78.72,0.46401299]
[1770965991612,0.07655598,78.738,78.715,0.46401299]
[1770965991797,12.70018669,78.739,78.715,0.46401299]
[1770965993421,4.25532382,78.74,78.715,0.46401299]
[1770965994420,16.95542866,78.74,78.715,0.46401299]
[1770965994594,0.0763999,78.739,78.715,0.46401299]
[1770965994920,4.25532382,78.74,78.716,0.46401299]
[1770965995113,0.07634907,78.739,78.716,0.46401299]
[1770965996014,12.77653576,78.739,78.716,0.46401299]
[1770965997526,0.07634907,78.739,78.716,0.46401299]
[1770965998112,0.07620004,78.729,78.71,12.70482888]
[1770965998422,0.07620004,78.729,78.711,0.46401299]
[1770965999122,0.07620004,78.729,78.712,13.16855613]
[1770965999330,51.18,78.729,78.713,0.46401299]
[1770966000009,51.18,78.731,78.713,0.46401299]
[1770966000405,0.07605608,78.751,78.715,0.49024921]
[1770966000609,51.2,78.749,78.721,0.49024921]
[1770966001327,0.46466243,78.747,78.721,0.49024921]
[1770966001522,0.46466243,78.739,78.715,0.49024921]
[1770966001724,0.46466243,78.729,78.705,0.49024921]
[1770966001923,4.61729252,78.747,78.691,12.70793356]
[1770966001924,0.46466243,78.719,78.691,12.70793356]
[1770966002107,51.22,78.718,78.692,0.49024921]
[1770966002628,51.22,78.718,78.701,0.49024921]
[1770966003523,51.22,78.718,78.703,0.49024921]
[1770966004130,31.75025653,78.74,78.702,12.7061574]
[1770966004131,0.46466243,78.736,78.711,0.49024921]
[1770966004312,51.22,78.735,78.711,0.49024921]
[1770966004518,0.46466243,78.729,78.711,0.49024921]
[1770966004817,4.25532382,78.73,78.703,0.49024921]
[1770966005021,51.28,78.728,78.703,0.49024921]
[1770966006036,51.28,78.728,78.705,0.49024921]
[1770966006333,51.3,78.729,78.705,0.49024921]
[1770966006835,0.46466243,78.735,78.705,0.49024921]
[1770966007130,36.00140136,78.75,78.721,0.49024921]
[1770966007131,4.71998625,78.75,78.721,0.49024921]
[1770966007428,0.46466243,78.739,78.715,0.49024921]
[1770966008025,0.46466243,78.737,78.707,0.49024921]
[1770966008424,0.46466243,78.735,78.707,0.49024921]
[1770966008624,4.25532382,78.73,78.707,0.49024921]
[1770966009334,0.46466243,78.735,78.707,0.49024921]
[1770966009632,4.25532382,78.73,78.707,0.49024921]
[1770966009817,4.25532382,78.73,78.66,4.25532382]
[1770966009818,0.46466243,78.729,78.701,0.49024921]
[1770966010009,0.46466243,78.729,78.703,0.49024921]
[1770966010213,0.46466243,78.729,78.672,0.49024921]
[1770966010415,0.46466243,78.709,78.681,0.49024921]
[1770966010636,0.46466243,78.729,78.701,0.49024921]
[1770966011032,0.46466243,78.728,78.701,0.49024921]
[1770966011422,0.46466243,78.733,78.701,0.49024921]
[1770966011733,0.46466243,78.719,78.701,0.49024921]
[1770966011936,4.25532382,78.72,78.691,0.49024921]
[1770966012237,0.46466243,78.719,78.693,0.49024921]
[1770966012541,4.25532382,78.72,78.693,0.49024921]
[1770966012837,0.46466243,78.725,78.693,0.49024921]
[1770966013024,33.0,78.724,78.701,0.49024921]
[1770966014133,0.46466243,78.723,78.701,0.49024921]
[1770966014325,0.46466243,78.723,78.703,0.49024921]
[1770966014525,0.46466243,78.719,78.683,0.49024921]
[1770966014731,0.46466243,78.719,78.691,0.49024921]
[1770966015322,0.46466243,78.709,78.673,0.49024921]
[1770966015649,0.46466243,78.709,78.681,0.49024921]
[1770966016640,0.46466243,78.709,78.683,0.49024921]
[1770966016934,0.46466243,78.728,78.691,0.49024921]
[1770966017138,51.78466243,78.727,78.701,0.49024921]
[1770966017539,0.46466243,78.726,78.701,0.49024921]
[1770966019135,51.32,78.727,78.703,0.49024921]
[1770966019342,51.32,78.728,78.703,0.49024921]
[1770966019522,0.46466243,78.727,78.703,0.49024921]
[1770966020622,0.46466243,78.719,78.698,0.49024921]
[1770966020823,0.46466243,78.727,78.698,0.49024921]
[1770966021018,4.25955735,78.74,78.701,0.49024921]
[1770966021218,51.82466243,78.739,78.713,0.49024921]
[1770966021532,4.25955735,78.78,78.721,0.49024921]
[1770966021533,13.16304979,78.751,78.721,0.49024921]
[1770966021727,55.63955735,78.75,78.721,0.49024921]
[1770966021926,0.46466243,78.749,78.721,0.49024921]
[1770966023338,0.46466243,78.787,78.741,0.49024921]
[1770966023543,0.46466243,78.769,78.741,0.49024921]
[1770966025947,0.46466243,78.769,78.743,0.49024921]
[1770966026445,0.46466243,78.767,78.743,0.49024921]
[1770966027739,0.46466243,78.788,78.751,0.49024921]
[1770966027944,4.25955735,78.78,78.753,0.49024921]
[1770966028242,51.88466243,78.779,78.753,0.49024921]
[1770966028552,0.46466243,78.778,78.753,0.49024921]
[1770966029447,0.46466243,78.769,78.745,0.49024921]
[1770966030135,0.46466243,78.769,78.746,12.69905772]
[1770966031041,0.46466243,78.769,78.747,0.47202571]
[1770966033448,51.44,78.768,78.749,0.47202571]
[1770966034250,0.49968578,78.769,78.749,0.47202571]
[1770966034449,0.49988843,78.768,78.744,0.48661418]
[1770966034658,0.49988843,78.767,78.744,0.48661418]
[1770966035351,0.49988843,78.765,78.744,0.48661418]
[1770966035837,51.48,78.771,78.751,0.48661418]
[1770966036452,51.48,78.771,78.761,0.48661418]
[1770966037949,51.48,78.771,78.751,0.48661418]
[1770966039259,0.49988843,78.77,78.75,16.95783737]
[1770966039638,0.49988843,78.769,78.745,0.48661418]
[1770966040143,0.49988843,78.767,78.745,0.48661418]
[1770966040347,0.49988843,78.765,78.745,0.48661418]
[1770966040551,0.49988843,78.765,78.74,12.7000254]
[1770966040865,0.49988843,78.763,78.74,17.44619693]
[1770966041032,0.49988843,78.763,78.732,12.70119709]
[1770966041233,0.49988843,78.759,78.733,0.48661418]
[1770966041461,51.52,78.764,78.733,0.48661418]
[1770966041754,51.52,78.764,78.742,0.48661418]
[1770966041954,51.52,78.767,78.751,0.48661418]
[1770966043358,51.52,78.767,78.753,0.48661418]
[1770966044737,51.52,78.767,78.752,12.6980902]
[1770966044944,0.49988843,78.766,78.752,12.6980902]
[1770966045664,0.49988843,78.769,78.752,12.6980902]
[1770966046183,51.54,78.768,78.753,0.48661418]
[1770966046356,51.54,78.77,78.752,12.6980902]
[1770966046542,52.03988843,78.77,78.749,0.48661418]
[1770966047238,0.49988843,78.769,78.749,0.48661418]
[1770966048568,0.49988843,78.767,78.744,0.48661418]
[1770966048859,12.69551086,78.768,78.744,0.48661418]
[1770966048860,0.49988843,78.765,78.744,0.48661418]
[1770966050444,0.49988843,78.759,78.731,0.48661418]
[1770966050864,0.49988843,78.759,78.732,12.70118244]
[1770966051063,0.49988843,78.757,78.733,0.48661418]
[1770966051945,0.49988843,78.783,78.741,0.48661418]
[1770966052152,0.49988843,78.769,78.741,0.48661418]
[1770966052746,0.49988843,78.767,78.741,0.48661418]
[1770966052943,0.49988843,78.759,78.736,0.48661418]
[1770966053149,0.49988843,78.757,78.736,0.48661418]
[1770966053678,51.72,78.758,78.724,13.18909729]
[1770966053679,0.49988843,78.749,78.724,13.18909729]
[1770966053872,0.49988843,78.749,78.725,0.48661418]
[1770966055750,0.49988843,78.749,78.727,0.48661418]
[1770966058705,0.49988843,78.756,78.729,0.48661418]
[1770966059252,4.25955735,78.75,78.729,0.48661418]
[1770966060378,4.25955735,78.76,78.732,0.48661418]
[1770966060680,0.47318876,78.779,78.751,0.49462189]
[1770966060864,0.47318876,78.777,78.751,0.49462189]
[1770966061667,0.47318876,78.759,78.732,0.49462189]
[1770966061874,0.47318876,78.749,78.719,0.49462189]
[1770966062069,0.47318876,78.739,78.713,0.49462189]
[1770966063258,0.47318876,78.739,78.715,0.49462189]
[1770966063449,51.82,78.738,78.715,0.49462189]
[1770966063654,51.8,78.737,78.715,0.49462189]
[1770966064275,0.47318876,78.744,78.715,0.49462189]
[1770966064477,51.82,78.74,78.715,0.49462189]
[1770966065389,52.29318876,78.739,78.715,0.49462189]
[1770966065578,0.47318876,78.738,78.715,0.49462189]
[1770966065974,51.82,78.739,78.717,0.49462189]
[1770966066287,51.84,78.739,78.717,0.49462189]
[1770966066987,0.47318876,78.749,78.717,0.49462189]
[1770966067191,51.84,78.739,78.721,0.49462189]
[1770966067392,51.84,78.739,78.723,0.49462189]
[1770966071201,51.84,78.739,78.725,0.49462189]
[1770966071986,0.47318876,78.767,78.725,0.49462189]
[1770966072190,4.25955735,78.77,78.731,0.49462189]
[1770966072576,45.64,78.769,78.731,0.49462189]
[1770966072895,45.64,78.769,78.741,0.49462189]
[1770966073394,45.64,78.769,78.743,0.49462189]
[1770966073697,0.47318876,78.768,78.743,0.49462189]
[1770966074491,0.47318876,78.775,78.743,0.49462189]
[1770966074795,38.4,78.774,78.743,0.49462189]
[1770966075789,38.4,78.774,78.751,0.49462189]
[1770966076996,51.84,78.788,78.761,0.49462189]
[1770966077182,0.47318876,78.787,78.761,0.49462189]
[1770966079096,4.25470319,78.78,78.761,13.19124061]
[1770966079278,4.25470319,78.78,78.762,0.49462189]
[1770966080298,0.47318876,78.781,78.764,0.49462189]
[1770966081101,0.47318876,78.779,78.758,13.1916104]
[1770966081281,0.47318876,78.779,78.759,0.49462189]
[1770966081799,0.47318876,78.779,78.751,0.49462189]
[1770966082098,0.47318876,78.779,78.752,0.49462189]
[1770966082404,0.47318876,78.777,78.752,0.49462189]
[1770966082585,4.25470319,78.78,78.754,0.49462189]
[1770966082904,0.47318876,78.779,78.754,0.49462189]
[1770966083787,0.47318876,78.785,78.761,0.49462189]
[1770966084180,0.47318876,78.779,78.761,0.49462189]
[1770966084688,56.60789195,78.79,78.761,0.49462189]
[1770966084891,51.88,78.789,78.761,0.49462189]
[1770966085083,0.47318876,78.788,78.761,0.49462189]
[1770966085679,0.47318876,78.788,78.763,0.49462189]
[1770966085897,51.92,78.794,78.771,0.49462189]
[1770966086403,0.47318876,78.789,78.763,0.49462189]
[1770966086704,0.47318876,78.789,78.765,0.49462189]
[1770966087285,0.47318876,78.788,78.765,0.49462189]
[1770966087906,0.47318876,78.793,78.765,0.49462189]
[1770966088799,0.47318876,78.793,78.767,0.49462189]
[1770966091494,12.69164382,78.792,78.767,0.49462189]
[1770966092204,13.18259093,78.792,78.767,0.49462189]
[1770966092404,0.49094711,78.791,78.767,0.49462189]
[1770966092603,0.49094711,78.789,78.767,0.49462189]
[1770966092984,0.49094711,78.789,78.754,31.74416177]
[1770966092985,0.49094711,78.787,78.761,0.47802018]
[1770966093509,52.04,78.786,78.761,0.47802018]
[1770966094099,52.53094711,78.786,78.761,0.47802018]
[1770966094294,0.45066348,78.785,78.761,0.47802018]
[1770966097403,65.24350919,78.785,78.761,0.47802018]
[1770966097709,4.25470319,78.79,78.763,0.47138359]
[1770966097895,52.1,78.789,78.763,0.47138359]
[1770966098909,52.1,78.789,78.765,0.47138359]
[1770966099314,0.45066348,78.793,78.765,0.47138359]
[1770966099518,0.45066348,78.791,78.765,0.47138359]
[1770966100914,31.71967067,78.816,78.78,4.25470319]
[1770966101114,0.45066348,78.844,78.811,0.47138359]
[1770966101301,12.68409635,78.839,78.821,0.47138359]
[1770966101500,0.45066348,78.838,78.821,0.47138359]
[1770966102309,12.68439945,78.837,78.821,0.47138359]
[1770966102611,12.68439945,78.837,78.82,4.25470319]
[1770966103017,12.68439945,78.837,78.82,4.72608678]
[1770966103315,12.68439945,78.837,78.82,0.47138359]
[1770966103900,0.45066348,78.84,78.821,0.47138359]
[1770966104101,52.16,78.841,78.821,0.47138359]
[1770966107318,0.45066348,78.839,78.81,4.25470319]
[1770966107819,0.45066348,78.839,78.81,4.72608678]
[1770966108013,0.45066348,78.839,78.811,0.47138359]
[1770966109417,0.45066348,78.837,78.811,0.47138359]
[1770966109624,52.2,78.837,78.813,0.47138359]
[1770966110323,52.2,78.837,78.821,0.47138359]
[1770966111625,0.45066348,78.844,78.822,13.15819691]
[1770966111800,52.69066348,78.844,78.823,0.47138359]
[1770966113624,52.24,78.844,78.825,0.47138359]
[1770966115901,0.1,78.85,78.83,4.25470319]
[1770966116102,0.1,78.86,78.841,0.47138359]
[1770966117510,0.1,78.86,78.843,0.47138359]
[1770966119430,0.45066348,78.858,78.83,4.25470319]
[1770966119609,0.45066348,78.858,78.83,0.47138359]
[1770966120224,0.45066348,78.849,78.821,0.47138359]
[1770966120611,0.45474391,78.849,78.82,4.25470319]
[1770966120922,0.45474391,78.847,78.821,0.48314506]
[1770966121319,12.68295157,78.846,78.821,0.48314506]
[1770966121831,52.22,78.845,78.821,0.48314506]
[1770966124341,12.68327329,78.844,78.821,0.48314506]
[1770966125530,0.45474391,78.839,78.816,0.48314506]
[1770966125840,0.45474391,78.837,78.816,0.48314506]
[1770966126418,0.45474391,78.829,78.793,0.48314506]
[1770966126619,0.45474391,78.827,78.793,0.48314506]
[1770966126820,0.45474391,78.819,78.787,0.48314506]
[1770966127823,0.45474391,78.817,78.787,0.48314506]
[1770966128024,0.45474391,78.817,78.791,0.48314506]
[1770966128330,52.26,78.816,78.792,12.69164382]
[1770966128532,0.45474391,78.817,78.793,0.48314506]
[1770966128735,52.26,78.816,78.793,0.48314506]
[1770966129531,12.68794011,78.815,78.793,0.48314506]
[1770966129717,13.14268402,78.815,78.793,0.48314506]
[1770966130941,0.45474391,78.799,78.76,0.48314506]
[1770966131142,0.45474391,78.798,78.771,0.48314506]
[1770966131323,0.45474391,78.797,78.771,0.48314506]
[1770966132031,52.28,78.798,78.771,0.48314506]
[1770966133023,52.3,78.798,78.773,0.48314506]
[1770966133423,52.75474391,78.798,78.773,0.48314506]
[1770966133651,0.45474391,78.797,78.769,0.48314506]
[1770966134139,52.3,78.798,78.771,0.48314506]
[1770966134439,52.3,78.798,78.781,0.48314506]
[1770966138548,52.38,78.812,78.791,0.48314506]
[1770966138753,0.45474391,78.823,78.791,0.48314506]
[1770966138754,52.38,78.818,78.791,0.48314506]
[1770966139131,0.45474391,78.823,78.791,0.48314506]
[1770966139355,52.38,78.822,78.791,0.48314506]
[1770966140335,52.83474391,78.822,78.793,0.48314506]
[1770966140833,0.45474391,78.821,78.793,0.48314506]
[1770966141269,52.42,78.82,78.793,0.48314506]
[1770966141557,56.67068129,78.82,78.793,0.48314506]
[1770966141732,52.42,78.819,78.795,0.48314506]
[1770966142061,52.42,78.818,78.795,0.48314506]
[1770966142554,52.42,78.818,78.801,0.48314506]
[1770966143237,12.68650821,78.824,78.801,0.48314506]
[1770966143438,52.44,78.822,78.801,0.48314506]
[1770966143638,52.44,78.823,78.801,0.48314506]
[1770966143851,12.68491067,78.834,78.811,0.48314506]
[1770966144043,52.44,78.84,78.821,0.48314506]
[1770966145353,52.44,78.841,78.821,0.48314506]
[1770966147037,52.89474391,78.841,78.821,0.48314506]
[1770966148161,0.45474391,78.839,78.811,12.6885765]
[1770966148456,0.45474391,78.839,78.812,0.48314506]
[1770966149162,0.45474391,78.839,78.814,0.48314506]
[1770966149842,52.44,78.841,78.82,4.25068129]
[1770966150041,52.44,78.841,78.821,0.48314506]
[1770966154966,52.56,78.844,78.821,0.48314506]
[1770966156674,0.50011554,78.849,78.823,0.45554585]
[1770966156978,52.58,78.848,78.831,0.45554585]
[1770966157269,0.1,78.86,78.831,0.45554585]
[1770966157480,0.1,78.86,78.822,44.40384663]
[1770966157481,0.1,78.86,78.841,0.45554585]
[1770966157681,0.1,78.86,78.851,0.45554585]
[1770966159265,0.50011554,78.879,78.853,0.45554585]
[1770966159446,52.58,78.878,78.861,0.45554585]
[1770966159642,52.58,78.88,78.861,0.45554585]
[1770966160852,52.58,78.88,78.862,12.68037838]
[1770966161267,52.58,78.88,78.862,13.13592423]
[1770966162366,12.6776455,78.879,78.85,4.70622714]
[1770966162569,0.50011554,78.878,78.851,0.45554585]
[1770966163069,0.50011554,78.876,78.845,0.45554585]
[1770966163572,52.58,78.875,78.845,0.45554585]
[1770966163755,0.50011554,78.874,78.845,0.45554585]
[1770966164253,0.50011554,78.869,78.845,0.45554585]
[1770966164647,0.50011554,78.869,78.847,0.45554585]
[1770966164954,52.58,78.875,78.851,0.45554585]
[1770966166255,12.67844917,78.874,78.851,0.45554585]